[Event "*** Titled Tuesday Blitz"]
[Site "Chess.com"]
[Date "2020.11.24"]
[Round "3"]
[White "Firegrizzly"]
[Black "AlexeiShirov"]
[Result "0-1"]
[WhiteElo "2604"]
[BlackElo "2828"]
[TimeControl "180+1"]
[EndTime "10:42:32 PST"]
[Termination "AlexeiShirov won by resignation"]

1. e4 {[%clk 0:03:00.9]} 1... e5 {[%clk 0:02:58.8]} 2. Nf3 {[%clk 0:03:00.1]}
2... Nc6 {[%clk 0:02:58.8]} 3. d4 {[%clk 0:02:59.5]} 3... exd4 {[%clk
0:02:57.3]} 4. Nxd4 {[%clk 0:03:00.4]} 4... Qf6 {[%clk 0:02:57.2]} 5. Nxc6
{[%clk 0:02:51.5]} 5... Bc5 {[%clk 0:02:55.9]} 6. Qf3 {[%clk 0:02:51.1]} 6...
bxc6 {[%clk 0:02:51.7]} 7. Nc3 {[%clk 0:02:44.5]} 7... Qxf3 {[%clk 0:02:48]} 8.
gxf3 {[%clk 0:02:43.8]} 8... Ne7 {[%clk 0:02:43.1]} 9. Rg1 {[%clk 0:02:40.5]}
9... O-O {[%clk 0:02:41.6]} 10. Be3 {[%clk 0:02:37]} 10... Bb6 {[%clk
0:02:40.7]} 11. Bc4 {[%clk 0:02:33.7]} 11... d6 {[%clk 0:02:39.3]} 12. a4 {[%clk
0:02:30.7]} 12... Be6 {[%clk 0:02:36.8]} 13. Ba6 {[%clk 0:02:25.1]} 13... Rab8
{[%clk 0:02:08.9]} 14. b3 {[%clk 0:02:19.8]} 14... f5 {[%clk 0:01:58.7]} 15.
Bxb6 {[%clk 0:02:05.4]} 15... Rxb6 {[%clk 0:01:42.2]} 16. Bd3 {[%clk 0:02:04.5]}
16... Ng6 {[%clk 0:01:42.1]} 17. exf5 {[%clk 0:01:54.3]} 17... Bxf5 {[%clk
0:01:41.7]} 18. Be4 {[%clk 0:01:49.4]} 18... d5 {[%clk 0:01:41]} 19. Bxf5 {[%clk
0:01:49.1]} 19... Rxf5 {[%clk 0:01:40.2]} 20. Rg3 {[%clk 0:01:47.1]} 20... Rb4
{[%clk 0:01:34.1]} 21. a5 {[%clk 0:01:45]} 21... Rh4 {[%clk 0:01:31.9]} 22. h3
{[%clk 0:01:42.2]} 22... Ne5 {[%clk 0:01:28.8]} 23. Ke2 {[%clk 0:01:40]} 23...
Rhf4 {[%clk 0:01:25.4]} 24. Ra4 {[%clk 0:01:37.3]} 24... Rxf3 {[%clk 0:01:25.4]}
25. Rxf3 {[%clk 0:01:36.4]} 25... Rxf3 {[%clk 0:01:25.2]} 26. Na2 {[%clk
0:01:32.6]} 26... Rxh3 {[%clk 0:01:23.9]} 27. Rb4 {[%clk 0:01:32.6]} 27... h5
{[%clk 0:01:21]} 28. Rb7 {[%clk 0:01:29.4]} 28... Rh1 {[%clk 0:01:18.2]} 29.
Rxa7 {[%clk 0:01:29.2]} 29... h4 {[%clk 0:01:17]} 30. Ra8+ {[%clk 0:01:29.1]}
30... Kh7 {[%clk 0:01:16.1]} 31. a6 {[%clk 0:01:30]} 31... Ra1 {[%clk
0:01:15.5]} 32. Nc3 {[%clk 0:01:29.1]} 32... h3 {[%clk 0:01:14.7]} 33. Na4
{[%clk 0:01:26.3]} 33... h2 {[%clk 0:01:14.8]} 34. a7 {[%clk 0:01:26.9]} 34...
h1=Q {[%clk 0:01:14.2]} 35. Rh8+ {[%clk 0:01:26.5]} 35... Kxh8 {[%clk
0:01:13.4]} 36. a8=Q+ {[%clk 0:01:27.4]} 36... Kh7 {[%clk 0:01:13.2]} 0-1

[Event "*** Titled Tuesday Blitz"]
[Site "Chess.com"]
[Date "2020.11.24"]
[Round "3"]
[White "svilson23"]
[Black "szachuspl"]
[Result "0-1"]
[WhiteElo "2257"]
[BlackElo "2498"]
[TimeControl "180+1"]
[EndTime "10:42:39 PST"]
[Termination "szachuspl won by resignation"]

1. e4 {[%clk 0:03:00.7]} 1... c5 {[%clk 0:02:58.8]} 2. Nf3 {[%clk 0:03:01]} 2...
e6 {[%clk 0:02:58.9]} 3. c3 {[%clk 0:02:59.7]} 3... Nf6 {[%clk 0:02:58.4]} 4. e5
{[%clk 0:03:00.1]} 4... Nd5 {[%clk 0:02:58.5]} 5. g3 {[%clk 0:03:00.7]} 5... Nc6
{[%clk 0:02:57.6]} 6. Bg2 {[%clk 0:02:59.6]} 6... f5 {[%clk 0:02:56.8]} 7. O-O
{[%clk 0:02:51.8]} 7... Be7 {[%clk 0:02:55.7]} 8. c4 {[%clk 0:02:36.6]} 8... Nb6
{[%clk 0:02:50.2]} 9. Qe2 {[%clk 0:02:23.6]} 9... Qc7 {[%clk 0:02:49.2]} 10. Nc3
{[%clk 0:02:23.2]} 10... a6 {[%clk 0:02:48.1]} 11. Rd1 {[%clk 0:02:22.8]} 11...
O-O {[%clk 0:02:47.4]} 12. Rb1 {[%clk 0:02:13.4]} 12... Rb8 {[%clk 0:02:45.3]}
13. b3 {[%clk 0:01:48.8]} 13... Na8 {[%clk 0:02:40.6]} 14. Ba3 {[%clk
0:01:44.5]} 14... b5 {[%clk 0:02:35]} 15. cxb5 {[%clk 0:01:43.2]} 15... axb5
{[%clk 0:02:35.1]} 16. Nxb5 {[%clk 0:01:41.2]} 16... Qa5 {[%clk 0:02:35]} 17.
Bf1 {[%clk 0:01:23.8]} 17... Rxb5 {[%clk 0:02:32.9]} 18. Qxb5 {[%clk 0:01:21.9]}
18... Qxa3 {[%clk 0:02:33.3]} 19. d4 {[%clk 0:01:07.4]} 19... Nc7 {[%clk
0:02:31.1]} 20. Qe2 {[%clk 0:00:57.6]} 20... Ba6 {[%clk 0:02:21.9]} 21. Qb2
{[%clk 0:00:53.7]} 21... Qxb2 {[%clk 0:02:21.2]} 22. Rxb2 {[%clk 0:00:50.1]}
22... Bxf1 {[%clk 0:02:21.4]} 23. Kxf1 {[%clk 0:00:49.3]} 23... Nd5 {[%clk
0:02:20]} 24. dxc5 {[%clk 0:00:47.3]} 24... Bxc5 {[%clk 0:02:19.8]} 25. Rc2
{[%clk 0:00:41.3]} 25... Ba3 {[%clk 0:02:15.4]} 26. Kg2 {[%clk 0:00:32.3]} 26...
Rb8 {[%clk 0:02:13.4]} 27. Rc4 {[%clk 0:00:30.6]} 27... Kf8 {[%clk 0:02:04.9]}
28. Nd4 {[%clk 0:00:26.5]} 28... Nxe5 {[%clk 0:02:01.6]} 29. Ra4 {[%clk
0:00:24.7]} 29... Nc3 {[%clk 0:01:57.1]} 30. Rxa3 {[%clk 0:00:20.3]} 30... Nxd1
{[%clk 0:01:57]} 0-1

[Event "*** Titled Tuesday Blitz"]
[Site "Chess.com"]
[Date "2020.11.24"]
[Round "3"]
[White "Neftegor"]
[Black "malakismayil"]
[Result "1-0"]
[WhiteElo "2506"]
[BlackElo "2253"]
[TimeControl "180+1"]
[EndTime "10:42:42 PST"]
[Termination "Neftegor won by resignation"]

1. d4 {[%clk 0:03:00.9]} 1... Nf6 {[%clk 0:02:58.8]} 2. c4 {[%clk 0:03:00.3]}
2... e6 {[%clk 0:02:58.4]} 3. Nc3 {[%clk 0:03:00.3]} 3... Bb4 {[%clk 0:02:57.9]}
4. e3 {[%clk 0:02:59.8]} 4... b6 {[%clk 0:02:56.7]} 5. Ne2 {[%clk 0:02:59]} 5...
Bb7 {[%clk 0:02:56.4]} 6. Ng3 {[%clk 0:02:58.8]} 6... O-O {[%clk 0:02:56]} 7.
Bd3 {[%clk 0:02:56.6]} 7... Bxc3+ {[%clk 0:02:55.5]} 8. bxc3 {[%clk 0:02:56.3]}
8... d6 {[%clk 0:02:56.4]} 9. e4 {[%clk 0:02:56.3]} 9... e5 {[%clk 0:02:54.7]}
10. O-O {[%clk 0:02:55]} 10... h6 {[%clk 0:02:54.1]} 11. f4 {[%clk 0:02:54.7]}
11... Nbd7 {[%clk 0:02:53.1]} 12. fxe5 {[%clk 0:02:49.6]} 12... dxe5 {[%clk
0:02:54]} 13. Qf3 {[%clk 0:02:44.8]} 13... Re8 {[%clk 0:02:46.7]} 14. Bd2 {[%clk
0:02:39.8]} 14... Qe7 {[%clk 0:02:34.1]} 15. Nf5 {[%clk 0:02:35.9]} 15... Qe6
{[%clk 0:02:34]} 16. Qg3 {[%clk 0:02:35]} 16... Nh5 {[%clk 0:02:29.6]} 17. Qh4
{[%clk 0:02:35]} 17... Nf4 {[%clk 0:01:55.8]} 18. Bxf4 {[%clk 0:02:18.1]} 18...
exf4 {[%clk 0:01:56.7]} 19. Qxf4 {[%clk 0:02:17.5]} 19... Rac8 {[%clk
0:01:25.6]} 20. e5 {[%clk 0:02:10.6]} 20... f6 {[%clk 0:01:17]} 21. Qg4 {[%clk
0:02:09]} 21... Re7 {[%clk 0:00:43.7]} 22. Nxe7+ {[%clk 0:01:57.4]} 22... Qxe7
{[%clk 0:00:31.4]} 23. Bf5 {[%clk 0:01:57.2]} 23... Rd8 {[%clk 0:00:29]} 24.
Rae1 {[%clk 0:01:40.5]} 24... fxe5 {[%clk 0:00:25.9]} 25. Be6+ {[%clk
0:01:40.1]} 25... Kh8 {[%clk 0:00:24.5]} 26. Rf7 {[%clk 0:01:39.6]} 1-0

[Event "*** Titled Tuesday Blitz"]
[Site "Chess.com"]
[Date "2020.11.24"]
[Round "3"]
[White "JozefKneht"]
[Black "jacky72"]
[Result "0-1"]
[WhiteElo "2358"]
[BlackElo "2705"]
[TimeControl "180+1"]
[EndTime "10:42:46 PST"]
[Termination "jacky72 won by resignation"]

1. d4 {[%clk 0:02:55.8]} 1... Nf6 {[%clk 0:02:56.6]} 2. c4 {[%clk 0:02:55.8]}
2... g6 {[%clk 0:02:57.1]} 3. Nc3 {[%clk 0:02:55.8]} 3... Bg7 {[%clk 0:02:57.7]}
4. e4 {[%clk 0:02:55.4]} 4... d6 {[%clk 0:02:58.1]} 5. Nf3 {[%clk 0:02:55.8]}
5... O-O {[%clk 0:02:58.7]} 6. Be2 {[%clk 0:02:56.3]} 6... Na6 {[%clk
0:02:59.1]} 7. O-O {[%clk 0:02:55.9]} 7... e5 {[%clk 0:02:59.4]} 8. Be3 {[%clk
0:02:56.1]} 8... c6 {[%clk 0:02:59.1]} 9. dxe5 {[%clk 0:02:47.5]} 9... dxe5
{[%clk 0:02:56.8]} 10. Qxd8 {[%clk 0:02:48.2]} 10... Rxd8 {[%clk 0:02:56.7]} 11.
Rfd1 {[%clk 0:02:48.4]} 11... Be6 {[%clk 0:02:54.7]} 12. Rxd8+ {[%clk
0:02:40.6]} 12... Rxd8 {[%clk 0:02:53.5]} 13. Bxa7 {[%clk 0:02:40.6]} 13... Nb4
{[%clk 0:02:47.9]} 14. Bb6 {[%clk 0:02:14.6]} 14... Re8 {[%clk 0:02:41.9]} 15.
a3 {[%clk 0:02:10]} 15... Na6 {[%clk 0:02:35]} 16. Rd1 {[%clk 0:02:01.1]} 16...
Nd7 {[%clk 0:02:29.5]} 17. Be3 {[%clk 0:01:59.6]} 17... Ndc5 {[%clk 0:02:29.4]}
18. b4 {[%clk 0:01:56.9]} 18... Nb3 {[%clk 0:02:29.6]} 19. c5 {[%clk 0:01:55.3]}
19... Nc7 {[%clk 0:02:27.1]} 20. a4 {[%clk 0:01:42.4]} 20... Ra8 {[%clk
0:02:16.5]} 21. h3 {[%clk 0:01:33.1]} 21... h6 {[%clk 0:02:10.7]} 22. a5 {[%clk
0:01:32.2]} 22... f5 {[%clk 0:02:04.7]} 23. Nd2 {[%clk 0:01:12.5]} 23... Nd4
{[%clk 0:01:52.8]} 24. Bf1 {[%clk 0:01:11]} 24... Nc2 {[%clk 0:01:50]} 25. Rb1
{[%clk 0:01:07.2]} 25... f4 {[%clk 0:01:49.2]} 26. Nc4 {[%clk 0:01:02.9]} 26...
fxe3 {[%clk 0:01:45.9]} 27. Nd6 {[%clk 0:01:03]} 27... exf2+ {[%clk 0:01:42.3]}
28. Kxf2 {[%clk 0:01:02.7]} 28... Rb8 {[%clk 0:01:33.4]} 29. Na4 {[%clk
0:01:00.5]} 29... Na6 {[%clk 0:01:29.4]} 30. b5 {[%clk 0:00:57.5]} 30... cxb5
{[%clk 0:01:26.2]} 31. Bxb5 {[%clk 0:00:53.4]} 31... Na3 {[%clk 0:01:26.5]} 32.
Rb2 {[%clk 0:00:52.5]} 32... Nxb5 {[%clk 0:01:24.9]} 33. Rxb5 {[%clk 0:00:52.6]}
33... Bd7 {[%clk 0:01:25.4]} 0-1

[Event "*** Titled Tuesday Blitz"]
[Site "Chess.com"]
[Date "2020.11.24"]
[Round "3"]
[White "sofaceindisguise"]
[Black "Mr_Heisenberg13"]
[Result "0-1"]
[WhiteElo "2691"]
[BlackElo "2506"]
[TimeControl "180+1"]
[EndTime "10:42:48 PST"]
[Termination "Mr_Heisenberg13 won by resignation"]

1. d4 {[%clk 0:02:59.9]} 1... Nf6 {[%clk 0:02:59.7]} 2. Nf3 {[%clk 0:03:00.1]}
2... d5 {[%clk 0:02:59.5]} 3. c4 {[%clk 0:03:01]} 3... e6 {[%clk 0:02:59.1]} 4.
g3 {[%clk 0:03:01.5]} 4... Be7 {[%clk 0:02:58.3]} 5. Bg2 {[%clk 0:03:01.9]} 5...
O-O {[%clk 0:02:58]} 6. O-O {[%clk 0:03:02.8]} 6... dxc4 {[%clk 0:02:57.9]} 7.
Qc2 {[%clk 0:03:02.9]} 7... a6 {[%clk 0:02:56.9]} 8. a4 {[%clk 0:03:03.2]} 8...
Bd7 {[%clk 0:02:52.4]} 9. Qxc4 {[%clk 0:02:59.2]} 9... Bc6 {[%clk 0:02:39.9]}
10. Bg5 {[%clk 0:02:58.7]} 10... Nbd7 {[%clk 0:02:39.3]} 11. Qc1 {[%clk
0:02:53.1]} 11... h6 {[%clk 0:02:38.2]} 12. Bxf6 {[%clk 0:02:47.4]} 12... Nxf6
{[%clk 0:02:39.1]} 13. Nc3 {[%clk 0:02:47.1]} 13... Ne4 {[%clk 0:02:30.6]} 14.
Rd1 {[%clk 0:02:45.7]} 14... Nxc3 {[%clk 0:02:29]} 15. Qxc3 {[%clk 0:02:45.1]}
15... Bxf3 {[%clk 0:02:28.6]} 16. Bxf3 {[%clk 0:02:44.8]} 16... c6 {[%clk
0:02:29.1]} 17. h4 {[%clk 0:02:44.4]} 17... Bf6 {[%clk 0:02:06.8]} 18. e3 {[%clk
0:02:43.8]} 18... Qe7 {[%clk 0:02:04.1]} 19. Qc2 {[%clk 0:02:37.7]} 19... Rfd8
{[%clk 0:02:01.8]} 20. Kg2 {[%clk 0:02:37.4]} 20... Rac8 {[%clk 0:02:00.6]} 21.
Rac1 {[%clk 0:02:35.5]} 21... Qb4 {[%clk 0:01:44.3]} 22. h5 {[%clk 0:02:34.3]}
22... Rd7 {[%clk 0:01:26.2]} 23. Rd3 {[%clk 0:02:32.5]} 23... Rcd8 {[%clk
0:01:25.3]} 24. Be4 {[%clk 0:02:16]} 24... e5 {[%clk 0:01:15.2]} 25. Bf5 {[%clk
0:02:06.6]} 25... Rd6 {[%clk 0:01:12.5]} 26. dxe5 {[%clk 0:02:05.5]} 26... Bxe5
{[%clk 0:01:05.2]} 27. Rcd1 {[%clk 0:02:04.4]} 27... Rxd3 {[%clk 0:00:58.1]} 28.
Rxd3 {[%clk 0:02:02.8]} 28... Rxd3 {[%clk 0:00:56.8]} 29. Qxd3 {[%clk
0:02:03.7]} 29... Qd6 {[%clk 0:00:56.8]} 30. Qc2 {[%clk 0:01:58.2]} 30... Qb4
{[%clk 0:00:53.8]} 31. b3 {[%clk 0:01:57.7]} 31... Qd6 {[%clk 0:00:48.9]} 32.
Be4 {[%clk 0:01:55.2]} 32... Kf8 {[%clk 0:00:41.8]} 33. Qe2 {[%clk 0:01:54.5]}
33... Bf6 {[%clk 0:00:40]} 34. Qg4 {[%clk 0:01:54]} 34... Qe6 {[%clk 0:00:40]}
35. Qd1 {[%clk 0:01:50.8]} 35... Qxe4+ {[%clk 0:00:39.4]} 36. Kg1 {[%clk
0:01:50.3]} 36... Qe6 {[%clk 0:00:38.7]} 37. Qd8+ {[%clk 0:01:49.8]} 37... Bxd8
{[%clk 0:00:38.2]} 0-1

[Event "*** Titled Tuesday Blitz"]
[Site "Chess.com"]
[Date "2020.11.24"]
[Round "3"]
[White "DenisQ"]
[Black "ErikRonka"]
[Result "1-0"]
[WhiteElo "2667"]
[BlackElo "2399"]
[TimeControl "180+1"]
[EndTime "10:42:54 PST"]
[Termination "DenisQ won by resignation"]

1. Nf3 {[%clk 0:03:00.9]} 1... d5 {[%clk 0:02:59.6]} 2. c4 {[%clk 0:02:58.2]}
2... c6 {[%clk 0:02:59.5]} 3. cxd5 {[%clk 0:02:58.1]} 3... cxd5 {[%clk
0:03:00.4]} 4. d4 {[%clk 0:02:58.5]} 4... Nf6 {[%clk 0:03:01]} 5. Nc3 {[%clk
0:02:59]} 5... Nc6 {[%clk 0:03:01.6]} 6. Bf4 {[%clk 0:02:58.9]} 6... Bf5 {[%clk
0:03:02.1]} 7. e3 {[%clk 0:02:58.4]} 7... e6 {[%clk 0:03:02.6]} 8. Ne5 {[%clk
0:02:58.3]} 8... Nxe5 {[%clk 0:02:45.4]} 9. Bxe5 {[%clk 0:02:59.2]} 9... Nd7
{[%clk 0:02:41.2]} 10. Qb3 {[%clk 0:02:58.3]} 10... Nxe5 {[%clk 0:02:31.8]} 11.
dxe5 {[%clk 0:02:59.2]} 11... Be7 {[%clk 0:02:25.8]} 12. Bb5+ {[%clk 0:02:57.9]}
12... Kf8 {[%clk 0:02:25.4]} 13. O-O {[%clk 0:02:57.4]} 13... Qc7 {[%clk
0:02:20.8]} 14. f4 {[%clk 0:02:34.1]} 14... g6 {[%clk 0:01:58.2]} 15. Be2 {[%clk
0:02:29.8]} 15... h5 {[%clk 0:01:53.7]} 16. Rfc1 {[%clk 0:02:27]} 16... Qd7
{[%clk 0:01:35.8]} 17. Nb5 {[%clk 0:02:23.1]} 17... Rc8 {[%clk 0:01:26.6]} 18.
Nxa7 {[%clk 0:02:10.5]} 18... Rxc1+ {[%clk 0:01:25.4]} 19. Rxc1 {[%clk
0:02:11.4]} 19... Kg7 {[%clk 0:01:18.3]} 20. Nb5 {[%clk 0:02:09.4]} 20... Rc8
{[%clk 0:01:11.4]} 21. Rxc8 {[%clk 0:02:07.7]} 21... Qxc8 {[%clk 0:01:12.3]} 22.
Qc3 {[%clk 0:02:07.5]} 22... Qa8 {[%clk 0:01:04]} 23. a3 {[%clk 0:02:02.7]}
23... Qa4 {[%clk 0:01:01.9]} 24. Kf2 {[%clk 0:01:59.9]} 24... h4 {[%clk
0:01:00.6]} 25. Qc7 {[%clk 0:01:57.1]} 25... Bf8 {[%clk 0:00:22]} 26. Nd6 {[%clk
0:01:52.3]} 26... Bxd6 {[%clk 0:00:22.3]} 27. exd6 {[%clk 0:01:51.3]} 27... Qe4
{[%clk 0:00:17.8]} 28. d7 {[%clk 0:01:47.1]} 28... h3 {[%clk 0:00:17.6]} 29.
Qe5+ {[%clk 0:01:45.8]} 29... Kf8 {[%clk 0:00:14.9]} 30. Qxe4 {[%clk 0:01:45.7]}
30... Bxe4 {[%clk 0:00:14.6]} 31. d8=Q+ {[%clk 0:01:45.4]} 1-0

[Event "*** Titled Tuesday Blitz"]
[Site "Chess.com"]
[Date "2020.11.24"]
[Round "3"]
[White "Oleksandr_Bortnyk"]
[Black "aleksandrovaleksei"]
[Result "1-0"]
[WhiteElo "2906"]
[BlackElo "2598"]
[TimeControl "180+1"]
[EndTime "10:42:58 PST"]
[Termination "Oleksandr_Bortnyk won on time"]

1. d4 {[%clk 0:02:57.9]} 1... Nf6 {[%clk 0:02:57.8]} 2. Nc3 {[%clk 0:02:57.4]}
2... d5 {[%clk 0:02:55.2]} 3. Bf4 {[%clk 0:02:57.9]} 3... Bf5 {[%clk 0:02:44.1]}
4. e3 {[%clk 0:02:58]} 4... e6 {[%clk 0:02:43.2]} 5. Nf3 {[%clk 0:02:58.1]} 5...
Bd6 {[%clk 0:02:35.8]} 6. Ne5 {[%clk 0:02:58]} 6... h6 {[%clk 0:02:26.1]} 7. Bd3
{[%clk 0:02:51.2]} 7... Bxd3 {[%clk 0:02:23.5]} 8. Nxd3 {[%clk 0:02:52.1]} 8...
Bxf4 {[%clk 0:02:20.4]} 9. Nxf4 {[%clk 0:02:51.8]} 9... Nbd7 {[%clk 0:02:12.9]}
10. Qf3 {[%clk 0:02:52]} 10... c5 {[%clk 0:02:10.4]} 11. O-O-O {[%clk
0:02:45.8]} 11... Qa5 {[%clk 0:02:06.4]} 12. Kb1 {[%clk 0:02:34.5]} 12... O-O-O
{[%clk 0:01:39]} 13. Nh5 {[%clk 0:02:19.9]} 13... cxd4 {[%clk 0:01:09.2]} 14.
Rxd4 {[%clk 0:02:17]} 14... Ne5 {[%clk 0:01:05]} 15. Qg3 {[%clk 0:01:53.8]}
15... Nc4 {[%clk 0:00:31.1]} 16. Nxf6 {[%clk 0:01:39.6]} 16... gxf6 {[%clk
0:00:30.7]} 17. Qg7 {[%clk 0:01:39.6]} 17... Qb6 {[%clk 0:00:03.8]} 18. b3
{[%clk 0:01:27.9]} 18... Rhg8 {[%clk 0:00:01.9]} 19. Qxf7 {[%clk 0:01:26.4]}
19... Rxg2 {[%clk 0:00:01.8]} 20. Qxf6 {[%clk 0:01:26.9]} 1-0

[Event "*** Titled Tuesday Blitz"]
[Site "Chess.com"]
[Date "2020.11.24"]
[Round "3"]
[White "eightbyeightchess"]
[Black "MPGM"]
[Result "0-1"]
[WhiteElo "2418"]
[BlackElo "2614"]
[TimeControl "180+1"]
[EndTime "10:43:01 PST"]
[Termination "MPGM won by resignation"]

1. e4 {[%clk 0:03:00.9]} 1... c5 {[%clk 0:02:58.9]} 2. Nf3 {[%clk 0:02:59.9]}
2... d6 {[%clk 0:02:58.2]} 3. d4 {[%clk 0:02:57.4]} 3... cxd4 {[%clk 0:02:58.5]}
4. Qxd4 {[%clk 0:02:58.3]} 4... Nc6 {[%clk 0:02:57.7]} 5. Bb5 {[%clk 0:02:57.9]}
5... Bd7 {[%clk 0:02:57.2]} 6. Bxc6 {[%clk 0:02:56.8]} 6... Bxc6 {[%clk
0:02:58]} 7. Nc3 {[%clk 0:02:57.4]} 7... Nf6 {[%clk 0:02:57.8]} 8. Bg5 {[%clk
0:02:57.9]} 8... e6 {[%clk 0:02:57.5]} 9. O-O-O {[%clk 0:02:57.2]} 9... Be7
{[%clk 0:02:58]} 10. Qd3 {[%clk 0:02:57.4]} 10... O-O {[%clk 0:02:46.8]} 11. Nd4
{[%clk 0:02:57]} 11... Rc8 {[%clk 0:02:36.4]} 12. f4 {[%clk 0:02:55.6]} 12...
Qc7 {[%clk 0:02:20.8]} 13. f5 {[%clk 0:02:52.9]} 13... e5 {[%clk 0:02:13.5]} 14.
Bxf6 {[%clk 0:02:42.2]} 14... gxf6 {[%clk 0:02:10]} 15. Nde2 {[%clk 0:02:22]}
15... Rfd8 {[%clk 0:02:05.8]} 16. Ng3 {[%clk 0:02:09.2]} 16... d5 {[%clk
0:02:04.9]} 17. Nh5 {[%clk 0:02:09]} 17... Kh8 {[%clk 0:02:00.8]} 18. exd5
{[%clk 0:01:49.5]} 18... Bxd5 {[%clk 0:01:58.7]} 19. Qg3 {[%clk 0:01:44.1]}
19... Rg8 {[%clk 0:01:56.2]} 20. Qh4 {[%clk 0:01:44.4]} 20... Bxg2 {[%clk
0:01:46.7]} 21. Nxf6 {[%clk 0:01:37.1]} 21... Rg7 {[%clk 0:01:43.3]} 22. Rhg1
{[%clk 0:01:29.7]} 22... Qc6 {[%clk 0:01:43.1]} 23. Rxg2 {[%clk 0:00:35.8]}
23... Qxg2 {[%clk 0:01:42.3]} 24. Rd7 {[%clk 0:00:23.9]} 24... Qf1+ {[%clk
0:01:18.5]} 25. Nd1 {[%clk 0:00:23.3]} 25... Qxf5 {[%clk 0:01:18.3]} 0-1

[Event "*** Titled Tuesday Blitz"]
[Site "Chess.com"]
[Date "2020.11.24"]
[Round "3"]
[White "DrVelja"]
[Black "ama18"]
[Result "1-0"]
[WhiteElo "2773"]
[BlackElo "2449"]
[TimeControl "180+1"]
[EndTime "10:43:02 PST"]
[Termination "DrVelja won by resignation"]

1. e4 {[%clk 0:03:00.9]} 1... c5 {[%clk 0:02:59.8]} 2. Nc3 {[%clk 0:03:00.6]}
2... Nc6 {[%clk 0:02:58]} 3. f4 {[%clk 0:03:00.7]} 3... g6 {[%clk 0:02:58]} 4.
Nf3 {[%clk 0:02:59.9]} 4... Bg7 {[%clk 0:02:57.9]} 5. Bb5 {[%clk 0:03:00.5]}
5... d6 {[%clk 0:02:52.3]} 6. Bxc6+ {[%clk 0:02:59.9]} 6... bxc6 {[%clk
0:02:52.6]} 7. d3 {[%clk 0:02:57.8]} 7... Nf6 {[%clk 0:02:48.6]} 8. O-O {[%clk
0:02:56.8]} 8... O-O {[%clk 0:02:46.5]} 9. Qe1 {[%clk 0:02:54.2]} 9... Rb8
{[%clk 0:02:41.5]} 10. Qh4 {[%clk 0:02:47.7]} 10... c4 {[%clk 0:02:14.2]} 11. f5
{[%clk 0:02:40.7]} 11... cxd3 {[%clk 0:02:05.5]} 12. cxd3 {[%clk 0:02:40.9]}
12... Ba6 {[%clk 0:02:01.8]} 13. Bh6 {[%clk 0:01:58.7]} 13... Bxh6 {[%clk
0:00:56.9]} 14. Qxh6 {[%clk 0:01:56.9]} 14... Bxd3 {[%clk 0:00:56.8]} 15. Ng5
{[%clk 0:01:41.8]} 15... Qb6+ {[%clk 0:00:49.6]} 16. Kh1 {[%clk 0:01:41]} 16...
Bxf1 {[%clk 0:00:48.9]} 17. Rxf1 {[%clk 0:01:41.8]} 17... Qd4 {[%clk 0:00:30.7]}
18. e5 {[%clk 0:01:33.7]} 18... Qxe5 {[%clk 0:00:27.3]} 19. Nce4 {[%clk
0:01:33.9]} 19... Rfd8 {[%clk 0:00:16.3]} 20. fxg6 {[%clk 0:01:32.1]} 20... fxg6
{[%clk 0:00:09.8]} 21. Nxf6+ {[%clk 0:01:31.4]} 1-0

[Event "*** Titled Tuesday Blitz"]
[Site "Chess.com"]
[Date "2020.11.24"]
[Round "3"]
[White "BlixLT"]
[Black "Sanyura"]
[Result "0-1"]
[WhiteElo "2358"]
[BlackElo "2532"]
[TimeControl "180+1"]
[EndTime "10:43:07 PST"]
[Termination "Sanyura won by resignation"]

1. Nf3 {[%clk 0:03:00]} 1... d5 {[%clk 0:02:54.4]} 2. c4 {[%clk 0:02:58.9]} 2...
c6 {[%clk 0:02:54.1]} 3. b3 {[%clk 0:02:59.1]} 3... dxc4 {[%clk 0:02:41]} 4.
bxc4 {[%clk 0:02:58.9]} 4... e5 {[%clk 0:02:39.7]} 5. Nc3 {[%clk 0:02:51.4]}
5... Bd6 {[%clk 0:02:34.7]} 6. Bb2 {[%clk 0:02:42]} 6... Nf6 {[%clk 0:02:33.2]}
7. d3 {[%clk 0:02:42.3]} 7... O-O {[%clk 0:02:29.8]} 8. g3 {[%clk 0:02:42.6]}
8... Bb4 {[%clk 0:02:28.6]} 9. Qb3 {[%clk 0:02:36.6]} 9... a5 {[%clk 0:02:28]}
10. a3 {[%clk 0:02:34.4]} 10... Bd6 {[%clk 0:02:13.4]} 11. Bg2 {[%clk
0:02:22.6]} 11... Be6 {[%clk 0:02:07.3]} 12. Ng5 {[%clk 0:02:07.6]} 12... Bg4
{[%clk 0:01:58.1]} 13. h3 {[%clk 0:01:57.8]} 13... Bh5 {[%clk 0:01:51.6]} 14.
O-O {[%clk 0:01:57.9]} 14... Na6 {[%clk 0:01:48.8]} 15. Nge4 {[%clk 0:01:05.4]}
15... Nxe4 {[%clk 0:01:44.5]} 16. Nxe4 {[%clk 0:01:05.7]} 16... Bc7 {[%clk
0:01:42.3]} 17. c5 {[%clk 0:00:28.3]} 17... Bxe2 {[%clk 0:01:33.7]} 18. Qxb7
{[%clk 0:00:19.4]} 18... Bxf1 {[%clk 0:01:29.4]} 19. Bxf1 {[%clk 0:00:19.8]}
19... Rb8 {[%clk 0:01:28.7]} 20. Qxa6 {[%clk 0:00:19.7]} 20... Rxb2 {[%clk
0:01:26]} 21. Qxc6 {[%clk 0:00:19.9]} 21... f5 {[%clk 0:01:24]} 22. Nd6 {[%clk
0:00:18.4]} 22... Bxd6 {[%clk 0:01:23.8]} 23. cxd6 {[%clk 0:00:18.9]} 23... Rb6
{[%clk 0:01:22.8]} 24. Qd5+ {[%clk 0:00:18.2]} 24... Kh8 {[%clk 0:01:21.5]} 25.
Qxe5 {[%clk 0:00:18.1]} 25... Rxd6 {[%clk 0:01:20.9]} 26. Qxa5 {[%clk 0:00:18]}
26... Qxa5 {[%clk 0:01:19.9]} 0-1